Workbook

Sheet QuickBooks Desktop Export Tips

Sheet Sheet1
H1: Type | J1: Date | L1: Num | N1: Name | P1: Memo | R1: Split | T1: Amount | V1: Balance
B2: 131 · Cash- | V2: 1246520.45
C3: 131.1 · Cash on Hand- | V3: 0
C4: Total 131.1 · Cash on Hand- | V4: =V3 -> 0
C5: 131.10 · REGIONS-HICKORY O&M | V5: 0
C6: Total 131.10 · REGIONS-HICKORY O&M | V6: =V5 -> 0
C7: 131.11 · REGIONS-HICKORY RESERVE | V7: 0
C8: Total 131.11 · REGIONS-HICKORY RESERVE | V8: =V7 -> 0
C9: 131.12 · REGIONS-HICKORY CUSTOMER DEP | V9: 0
C10: Total 131.12 · REGIONS-HICKORY CUSTOMER DEP | V10: =V9 -> 0
C11: 131.2 · FNB-O&M | V11: 712194.01
H12: Paycheck | J12: 2023-01-04 | L12: 5837 | R12: -SPLIT- | T12: -259.81 | V12: =ROUND(V11+T12,5) -> 711934.2
H13: Paycheck | J13: 2023-01-04 | L13: 5838 | R13: -SPLIT- | T13: -259.81 | V13: 711674.39
H14: Paycheck | J14: 2023-01-04 | L14: 5839 | R14: -SPLIT- | T14: -206.77 | V14: 711467.62
H15: Paycheck | J15: 2023-01-04 | L15: 5840 | R15: -SPLIT- | T15: -199.81 | V15: 711267.81
H16: Paycheck | J16: 2023-01-04 | L16: 5841 | R16: -SPLIT- | T16: -259.81 | V16: 711008
H17: Paycheck | J17: 2023-01-04 | L17: 5842 | R17: -SPLIT- | T17: -209.81 | V17: 710798.19
H18: Paycheck | J18: 2023-01-04 | L18: 5843 | R18: -SPLIT- | T18: -259.81 | V18: 710538.38
H19: Bill Pmt -Check | J19: 2023-01-04 | L19: 5844 | N19: CURRENS CONSTRUCTION SERVICES, LLC | R19: 20000 · Accounts Payable | T19: -524957.65 | V19: 185580.73
H20: Bill Pmt -Check | J20: 2023-01-04 | L20: 5845 | N20: GRAVES COUNTY WATER DISTRICT | R20: 20000 · Accounts Payable | T20: -126.21 | V20: 185454.52
H21: Bill Pmt -Check | J21: 2023-01-04 | L21: 5846 | N21: HAWKINS INC | R21: 20000 · Accounts Payable | T21: -5075.45 | V21: 180379.07
H22: Bill Pmt -Check | J22: 2023-01-04 | L22: 5847 | N22: MAYFIELD ELECTRIC & WATER SYSTEMS | R22: 20000 · Accounts Payable | T22: -21185.23 | V22: 159193.84
H23: Deposit | J23: 2023-01-04 | P23: Deposit | R23: 413 · Utility Plant Leased to Others | T23: 700 | V23: 159893.84
H24: Liability Check | J24: 2023-01-05 | L24: aw | N24: United States Treasury | P24: 26-2993243 | R24: -SPLIT- | T24: -473.3 | V24: 159420.54
H25: Liability Check | J25: 2023-01-05 | L25: AW | N25: KENTUCKY STATE TREASURER | P25: 327981 | R25: 238 · Payroll Liabilities | T25: -425.43 | V25: 158995.11
H26: Check | J26: 2023-01-06 | L26: AW | N26: KENTUCKY STATE TREASURER | R26: -SPLIT- | T26: -500 | V26: 158495.11
H27: Liability Check | J27: 2023-01-09 | L27: aw | N27: United States Treasury | P27: 26-2993243 | R27: -SPLIT- | T27: -473.3 | V27: 158021.81
H28: Check | J28: 2023-01-17 | L28: aw | N28: ATMOS ENERGY | R28: 675 · Miscellaneous Expense | T28: -245.6 | V28: 157776.21
H29: Check | J29: 2023-01-20 | L29: aw | N29: KENTUCKY STATE TREASURER | R29: 241 · Tax Collections Payable | T29: -4266.61 | V29: 153509.6
H30: Deposit | J30: 2023-01-20 | P30: Deposit | R30: -SPLIT- | T30: 187625.67 | V30: 341135.27
H31: General Journal | J31: 2023-01-20 | L31: 1136 | R31: -SPLIT- | T31: -7315 | V31: 333820.27
H32: General Journal | J32: 2023-01-20 | L32: 1136 | R32: 131.2 · FNB-O&M | T32: -1865 | V32: 331955.27
H33: General Journal | J33: 2023-01-20 | L33: 1136 | R33: 131.2 · FNB-O&M | T33: -9320 | V33: 322635.27
H34: General Journal | J34: 2023-01-20 | L34: 1136 | R34: 131.2 · FNB-O&M | T34: -2120 | V34: 320515.27
H35: General Journal | J35: 2023-01-20 | L35: 1136 | R35: 131.2 · FNB-O&M | T35: -3060 | V35: 317455.27
H36: General Journal | J36: 2023-01-20 | L36: 1136 | R36: 131.2 · FNB-O&M | T36: -700 | V36: 316755.27
H37: Check | J37: 2023-01-20 | L37: aw | N37: KENTUCKY REVENUE CABINET | R37: 241 · Tax Collections Payable | T37: -1019.87 | V37: 315735.4
H38: Check | J38: 2023-01-23 | L38: aw | N38: WEST KY RURAL ELECTRIC COOP | R38: -SPLIT- | T38: -11539.54 | V38: 304195.86
H39: Liability Check | J39: 2023-01-23 | L39: 5848 | N39: GRAVES COUNTY TREASURER | R39: 238 · Payroll Liabilities | T39: -63 | V39: 304132.86
H40: Check | J40: 2023-01-23 | L40: aw | N40: JACKSON PURCHASE ENERGY CORP | R40: 615 · Purchased Power | T40: -58.45 | V40: 304074.41
H41: Bill Pmt -Check | J41: 2023-01-23 | L41: 5849 | N41: GRAVES COUNTY PROPANE | R41: 20000 · Accounts Payable | T41: -763.29 | V41: 303311.12
H42: Bill Pmt -Check | J42: 2023-01-23 | L42: 5850 | N42: HAWKINS INC | R42: 20000 · Accounts Payable | T42: -6799.71 | V42: 296511.41
H43: Bill Pmt -Check | J43: 2023-01-23 | L43: 5851 | N43: KENTUCKY811 | R43: 20000 · Accounts Payable | T43: -285 | V43: 296226.41
H44: Bill Pmt -Check | J44: 2023-01-23 | L44: 5852 | N44: MAYFIELD ELECTRIC & WATER SYSTEMS | R44: 20000 · Accounts Payable | T44: -79908.15 | V44: 216318.26
H45: Bill Pmt -Check | J45: 2023-01-23 | L45: 5853 | N45: PACE ANALYTICAL SERVICES, LLC | R45: 20000 · Accounts Payable | T45: -1119.45 | V45: 215198.81
H46: Bill Pmt -Check | J46: 2023-01-23 | L46: 5854 | N46: RICK'S ELECTRIC | R46: 20000 · Accounts Payable | T46: -782.77 | V46: 214416.04
H47: Bill Pmt -Check | J47: 2023-01-23 | L47: 5855 | N47: VERIZON WIRELESS | R47: 20000 · Accounts Payable | T47: -155.94 | V47: 214260.1
H48: Bill Pmt -Check | J48: 2023-01-23 | L48: 5856 | N48: WATER MANAGEMENT SERVICES | R48: 20000 · Accounts Payable | T48: -375 | V48: 213885.1
H49: Bill Pmt -Check | J49: 2023-01-23 | L49: 5857 | N49: WK&T | R49: 20000 · Accounts Payable | T49: -20.76 | V49: 213864.34
H50: Bill Pmt -Check | J50: 2023-01-23 | L50: 5858 | N50: RICK'S ELECTRIC | R50: 20000 · Accounts Payable | T50: -720.15 | V50: 213144.19
H51: Bill Pmt -Check | J51: 2023-01-23 | L51: 5859 | N51: PACE ANALYTICAL SERVICES, LLC | R51: 20000 · Accounts Payable | T51: -6276.32 | V51: 206867.87
H52: Bill Pmt -Check | J52: 2023-01-23 | L52: 5860 | N52: PACE ANALYTICAL SERVICES, LLC | R52: 20000 · Accounts Payable | T52: -381.84 | V52: 206486.03
H53: Bill Pmt -Check | J53: 2023-01-23 | L53: 5862 | N53: PACE ANALYTICAL SERVICES, LLC | R53: 20000 · Accounts Payable | T53: -435.27 | V53: 206050.76
H54: Deposit | J54: 2023-01-31 | P54: Interest | R54: 419 · Interest & Dividend Income | T54: 273.01 | V54: 206323.77
H55: Deposit | J55: 2023-02-07 | P55: Deposit | R55: 413 · Utility Plant Leased to Others | T55: 700 | V55: 207023.77
H56: Deposit | J56: 2023-02-07 | P56: Deposit | R56: -SPLIT- | T56: 75042.35 | V56: 282066.12
H57: Bill Pmt -Check | J57: 2023-02-07 | L57: 5863 | N57: PACE ANALYTICAL SERVICES, LLC | R57: 20000 · Accounts Payable | T57: -6276.32 | V57: 275789.8
H58: Bill Pmt -Check | J58: 2023-02-07 | L58: 5864 | N58: PACE ANALYTICAL SERVICES, LLC | R58: 20000 · Accounts Payable | T58: -1244.45 | V58: 274545.35
H59: Bill Pmt -Check | J59: 2023-02-07 | L59: 5865 | N59: PACE ANALYTICAL SERVICES, LLC | R59: 20000 · Accounts Payable | T59: -695.37 | V59: 273849.98
H60: Bill Pmt -Check | J60: 2023-02-07 | L60: 5866 | N60: CURRENS CONSTRUCTION SERVICES, LLC | R60: 20000 · Accounts Payable | T60: -89760.76 | V60: 184089.22
H61: Bill Pmt -Check | J61: 2023-02-07 | L61: 5867 | N61: GRAVES COUNTY WATER DISTRICT | R61: 20000 · Accounts Payable | T61: -126.21 | V61: 183963.01
H62: Bill Pmt -Check | J62: 2023-02-07 | L62: 5868 | N62: HAWKINS INC | R62: 20000 · Accounts Payable | T62: -2358.88 | V62: 181604.13
H63: Bill Pmt -Check | J63: 2023-02-07 | L63: 5869 | N63: KENTUCKY811 | R63: 20000 · Accounts Payable | T63: -475.5 | V63: 181128.63
H64: Bill Pmt -Check | J64: 2023-02-07 | L64: 5870 | N64: MAYFIELD ELECTRIC & WATER SYSTEMS | R64: 20000 · Accounts Payable | T64: -25110.98 | V64: 156017.65
H65: Bill Pmt -Check | J65: 2023-02-07 | L65: 5871 | N65: PACE ANALYTICAL SERVICES, LLC | R65: 20000 · Accounts Payable | T65: -2238.79 | V65: 153778.86
H66: Bill Pmt -Check | J66: 2023-02-07 | L66: 5872 | N66: STOLL KEENON OGDEN PLLC | R66: 20000 · Accounts Payable | T66: -1617 | V66: 152161.86
H67: Bill Pmt -Check | J67: 2023-02-07 | L67: 5873 | N67: WATER MANAGEMENT SERVICES | R67: 20000 · Accounts Payable | T67: -11600 | V67: 140561.86
H68: Paycheck | J68: 2023-02-07 | L68: 5874 | R68: -SPLIT- | T68: -259.81 | V68: 140302.05
H69: Paycheck | J69: 2023-02-07 | L69: 5875 | R69: -SPLIT- | T69: -259.81 | V69: 140042.24
H70: Paycheck | J70: 2023-02-07 | L70: 5876 | R70: -SPLIT- | T70: -206.77 | V70: 139835.47
H71: Paycheck | J71: 2023-02-07 | L71: 5877 | R71: -SPLIT- | T71: -199.81 | V71: 139635.66
H72: Paycheck | J72: 2023-02-07 | L72: 5878 | R72: -SPLIT- | T72: -259.81 | V72: 139375.85
H73: Paycheck | J73: 2023-02-07 | L73: 5879 | R73: -SPLIT- | T73: -209.81 | V73: 139166.04
H74: Paycheck | J74: 2023-02-07 | L74: 5880 | R74: -SPLIT- | T74: -259.81 | V74: 138906.23
H75: Liability Check | J75: 2023-02-08 | L75: AW | N75: United States Treasury | P75: 26-2993243 | R75: -SPLIT- | T75: -473.3 | V75: 138432.93
H76: Check | J76: 2023-02-14 | L76: AW | N76: ATMOS ENERGY | R76: 675 · Miscellaneous Expense | T76: -214.76 | V76: =ROUND(V75+T76,5) -> 138218.17
H77: Check | J77: 2023-02-17 | L77: AW | N77: KENTUCKY STATE TREASURER | R77: 241 · Tax Collections Payable | T77: -4814.95 | V77: 133403.22
H78: Check | J78: 2023-02-17 | L78: AW | N78: KENTUCKY REVENUE CABINET | R78: 241 · Tax Collections Payable | T78: -1163.13 | V78: 132240.09
H79: Deposit | J79: 2023-02-22 | P79: Deposit | R79: -SPLIT- | T79: 202762.84 | V79: 335002.93
H80: Check | J80: 2023-02-27 | L80: AW | N80: JACKSON PURCHASE ENERGY CORP | R80: 615 · Purchased Power | T80: -36.78 | V80: 334966.15
H81: Check | J81: 2023-02-27 | L81: AW | N81: JACKSON PURCHASE ENERGY CORP | R81: 615 · Purchased Power | T81: -26.77 | V81: 334939.38
H82: General Journal | J82: 2023-02-27 | L82: 1146 | R82: -SPLIT- | T82: -1860 | V82: 333079.38
H83: General Journal | J83: 2023-02-27 | L83: 1146 | R83: 131.2 · FNB-O&M | T83: -9300 | V83: 323779.38
H84: General Journal | J84: 2023-02-27 | L84: 1146 | R84: 131.2 · FNB-O&M | T84: -3055 | V84: 320724.38
H85: General Journal | J85: 2023-02-27 | L85: 1146 | R85: 131.2 · FNB-O&M | T85: -2110 | V85: 318614.38
H86: General Journal | J86: 2023-02-27 | L86: 1146 | R86: 131.2 · FNB-O&M | T86: -695 | V86: 317919.38
H87: General Journal | J87: 2023-02-27 | L87: 1146 | R87: 131.2 · FNB-O&M | T87: -7225 | V87: 310694.38
H88: Bill Pmt -Check | J88: 2023-02-27 | L88: 5881 | N88: HAWKINS INC | R88: 20000 · Accounts Payable | T88: -4701.37 | V88: 305993.01
H89: Bill Pmt -Check | J89: 2023-02-27 | L89: 5882 | N89: MAYFIELD ELECTRIC & WATER SYSTEMS | P89: VOID: | R89: 20000 · Accounts Payable | T89: 0 | V89: 305993.01
H90: Bill Pmt -Check | J90: 2023-02-27 | L90: 5883 | N90: PACE ANALYTICAL SERVICES, LLC | P90: VOID: | R90: 20000 · Accounts Payable | T90: 0 | V90: 305993.01
H91: Bill Pmt -Check | J91: 2023-02-27 | L91: 5884 | N91: RICK'S ELECTRIC | R91: 20000 · Accounts Payable | T91: -390 | V91: 305603.01
H92: Bill Pmt -Check | J92: 2023-02-27 | L92: 5885 | N92: VERIZON WIRELESS | R92: 20000 · Accounts Payable | T92: -155.94 | V92: 305447.07
H93: Bill Pmt -Check | J93: 2023-02-27 | L93: 5886 | N93: VIKOR | R93: 20000 · Accounts Payable | T93: -7885 | V93: 297562.07
H94: Bill Pmt -Check | J94: 2023-02-27 | L94: 5887 | N94: WEST KY RURAL ELECTRIC COOP | P94: VOID: | R94: 20000 · Accounts Payable | T94: 0 | V94: 297562.07
H95: Bill Pmt -Check | J95: 2023-02-27 | L95: 5889 | N95: PACE ANALYTICAL SERVICES, LLC | R95: 20000 · Accounts Payable | T95: -3268.1 | V95: 294293.97
H96: Bill Pmt -Check | J96: 2023-02-27 | L96: 5890 | N96: MAYFIELD ELECTRIC & WATER SYSTEMS | R96: 20000 · Accounts Payable | T96: -76525.01 | V96: 217768.96
H97: Bill Pmt -Check | J97: 2023-02-27 | L97: 5891 | N97: MAYFIELD ELECTRIC & WATER SYSTEMS | R97: 20000 · Accounts Payable | T97: -12434.37 | V97: 205334.59
H98: Bill Pmt -Check | J98: 2023-02-27 | L98: AW | N98: WEST KY RURAL ELECTRIC COOP | R98: 20000 · Accounts Payable | T98: -9220.92 | V98: 196113.67
H99: Deposit | J99: 2023-02-28 | P99: Interest | R99: 419 · Interest & Dividend Income | T99: 200.73 | V99: 196314.4
H100: Deposit | J100: 2023-03-01 | P100: Deposit | R100: 413 · Utility Plant Leased to Others | T100: 700 | V100: 197014.4
H101: Paycheck | J101: 2023-03-13 | L101: 5892 | R101: -SPLIT- | T101: -259.81 | V101: 196754.59
H102: Paycheck | J102: 2023-03-13 | L102: 5893 | R102: -SPLIT- | T102: -259.81 | V102: 196494.78
H103: Paycheck | J103: 2023-03-13 | L103: 5894 | R103: -SPLIT- | T103: -206.77 | V103: 196288.01
H104: Paycheck | J104: 2023-03-13 | L104: 5895 | R104: -SPLIT- | T104: -199.81 | V104: 196088.2
H105: Paycheck | J105: 2023-03-13 | L105: 5896 | R105: -SPLIT- | T105: -259.81 | V105: 195828.39
H106: Paycheck | J106: 2023-03-13 | L106: 5897 | R106: -SPLIT- | T106: -209.81 | V106: 195618.58
H107: Paycheck | J107: 2023-03-13 | L107: 5898 | R107: -SPLIT- | T107: -259.81 | V107: 195358.77
H108: Bill Pmt -Check | J108: 2023-03-13 | L108: 5899 | N108: GRAVES COUNTY WATER DISTRICT | R108: 20000 · Accounts Payable | T108: -126.21 | V108: 195232.56
H109: Bill Pmt -Check | J109: 2023-03-13 | L109: 5900 | N109: HAWKINS INC | R109: 20000 · Accounts Payable | T109: -12244.32 | V109: 182988.24
H110: Bill Pmt -Check | J110: 2023-03-13 | L110: 5901 | N110: KENTUCKY811 | R110: 20000 · Accounts Payable | T110: -301.5 | V110: 182686.74
H111: Bill Pmt -Check | J111: 2023-03-13 | L111: 5902 | N111: MAYFIELD ELECTRIC & WATER SYSTEMS | R111: 20000 · Accounts Payable | T111: -11414.75 | V111: 171271.99
H112: Bill Pmt -Check | J112: 2023-03-13 | L112: 5903 | N112: VERIZON WIRELESS | R112: 20000 · Accounts Payable | T112: -155.94 | V112: 171116.05
H113: Bill Pmt -Check | J113: 2023-03-13 | L113: 5904 | N113: WATER MANAGEMENT SERVICES | R113: 20000 · Accounts Payable | T113: -75 | V113: 171041.05
H114: Liability Check | J114: 2023-03-14 | L114: aw | N114: United States Treasury | P114: 26-2993243 | R114: -SPLIT- | T114: -473.3 | V114: 170567.75
H115: Check | J115: 2023-03-14 | L115: aw | N115: ATMOS ENERGY | R115: 675 · Miscellaneous Expense | T115: -203.82 | V115: 170363.93
H116: Deposit | J116: 2023-03-17 | P116: Deposit | R116: -SPLIT- | T116: 192184.15 | V116: 362548.08
H117: General Journal | J117: 2023-03-17 | L117: 1154 | R117: -SPLIT- | T117: -9335 | V117: 353213.08
H118: General Journal | J118: 2023-03-17 | L118: 1154 | R118: 131.2 · FNB-O&M | T118: -1845 | V118: 351368.08
H119: General Journal | J119: 2023-03-17 | L119: 1154 | R119: 131.2 · FNB-O&M | T119: -7240 | V119: 344128.08
H120: General Journal | J120: 2023-03-17 | L120: 1154 | R120: 131.2 · FNB-O&M | T120: -690 | V120: 343438.08
H121: General Journal | J121: 2023-03-17 | L121: 1154 | R121: 131.2 · FNB-O&M | T121: -3010 | V121: 340428.08
H122: General Journal | J122: 2023-03-17 | L122: 1154 | R122: 131.2 · FNB-O&M | T122: -2120 | V122: 338308.08
H123: Check | J123: 2023-03-20 | L123: aw | N123: KENTUCKY STATE TREASURER | R123: 241 · Tax Collections Payable | T123: -4252.27 | V123: 334055.81
H124: Check | J124: 2023-03-20 | L124: AW | N124: KENTUCKY REVENUE CABINET | R124: 241 · Tax Collections Payable | T124: -1296.22 | V124: 332759.59
H125: Check | J125: 2023-03-27 | L125: aw | N125: JACKSON PURCHASE ENERGY CORP | R125: 615 · Purchased Power | T125: -30.57 | V125: 332729.02
H126: Check | J126: 2023-03-27 | L126: aw | N126: JACKSON PURCHASE ENERGY CORP | R126: 615 · Purchased Power | T126: -26.04 | V126: 332702.98
H127: Bill Pmt -Check | J127: 2023-03-27 | L127: 5905 | N127: DENTON LAW FIRM, PLLC | R127: 20000 · Accounts Payable | T127: -352.5 | V127: 332350.48
H128: Bill Pmt -Check | J128: 2023-03-27 | L128: 5906 | N128: HAWKINS INC | R128: 20000 · Accounts Payable | T128: -3866.28 | V128: 328484.2
H129: Bill Pmt -Check | J129: 2023-03-27 | L129: 5907 | N129: MAYFIELD ELECTRIC & WATER SYSTEMS | R129: 20000 · Accounts Payable | T129: -81031.55 | V129: 247452.65
H130: Bill Pmt -Check | J130: 2023-03-27 | L130: 5908 | N130: PACE ANALYTICAL SERVICES, LLC | R130: 20000 · Accounts Payable | T130: -2221.1 | V130: 245231.55
H131: Bill Pmt -Check | J131: 2023-03-27 | L131: 5909 | N131: STOLL KEENON OGDEN PLLC | R131: 20000 · Accounts Payable | T131: -2233 | V131: 242998.55
H132: Bill Pmt -Check | J132: 2023-03-27 | L132: 5910 | N132: UNITED PROPANE GAS | R132: 20000 · Accounts Payable | T132: -663.65 | V132: 242334.9
H133: Check | J133: 2023-03-31 | L133: AW | N133: WEST KY RURAL ELECTRIC COOP | R133: -SPLIT- | T133: -10693.16 | V133: 231641.74
H134: Deposit | J134: 2023-03-31 | P134: Interest | R134: 419 · Interest & Dividend Income | T134: 269.64 | V134: 231911.38
H135: Liability Check | J135: 2023-04-12 | L135: 5918 | N135: GRAVES COUNTY TREASURER | R135: 238 · Payroll Liabilities | T135: -63 | V135: 231848.38
H136: Check | J136: 2023-04-12 | L136: aw | N136: ATMOS ENERGY | R136: 675 · Miscellaneous Expense | T136: -183.45 | V136: 231664.93
H137: Deposit | J137: 2023-04-12 | P137: Deposit | R137: 413 · Utility Plant Leased to Others | T137: 700 | V137: 232364.93
H138: Paycheck | J138: 2023-04-13 | L138: 5911 | R138: -SPLIT- | T138: -259.81 | V138: 232105.12
H139: Paycheck | J139: 2023-04-13 | L139: 5912 | R139: -SPLIT- | T139: -259.81 | V139: 231845.31
H140: Paycheck | J140: 2023-04-13 | L140: 5913 | R140: -SPLIT- | T140: -206.77 | V140: =ROUND(V139+T140,5) -> 231638.54
H141: Paycheck | J141: 2023-04-13 | L141: 5914 | R141: -SPLIT- | T141: -199.81 | V141: 231438.73
H142: Paycheck | J142: 2023-04-13 | L142: 5915 | R142: -SPLIT- | T142: -259.81 | V142: 231178.92
H143: Paycheck | J143: 2023-04-13 | L143: 5916 | R143: -SPLIT- | T143: -209.81 | V143: 230969.11
H144: Paycheck | J144: 2023-04-13 | L144: 5917 | R144: -SPLIT- | T144: -259.81 | V144: 230709.3
H145: Bill Pmt -Check | J145: 2023-04-13 | L145: 5919 | N145: GRAVES COUNTY WATER DISTRICT | R145: 20000 · Accounts Payable | T145: -126.21 | V145: 230583.09
H146: Bill Pmt -Check | J146: 2023-04-13 | L146: 5920 | N146: HAWKINS INC | R146: 20000 · Accounts Payable | T146: -4499.06 | V146: 226084.03
H147: Bill Pmt -Check | J147: 2023-04-13 | L147: 5921 | N147: KENTUCKY811 | R147: 20000 · Accounts Payable | T147: -499.5 | V147: 225584.53
H148: Bill Pmt -Check | J148: 2023-04-13 | L148: 5922 | N148: MAYFIELD ELECTRIC & WATER SYSTEMS | R148: 20000 · Accounts Payable | T148: -21762.56 | V148: 203821.97
H149: Bill Pmt -Check | J149: 2023-04-13 | L149: 5923 | N149: PACE ANALYTICAL SERVICES, LLC | R149: 20000 · Accounts Payable | T149: -3817.2 | V149: 200004.77
H150: Bill Pmt -Check | J150: 2023-04-13 | L150: 5924 | N150: ROMAINE & ASSOCIATES PLLC | R150: 20000 · Accounts Payable | T150: -8800 | V150: 191204.77
H151: Bill Pmt -Check | J151: 2023-04-13 | L151: 5925 | N151: VERIZON WIRELESS | R151: 20000 · Accounts Payable | T151: -155.94 | V151: 191048.83
H152: Liability Check | J152: 2023-04-13 | L152: aw | N152: United States Treasury | P152: 26-2993243 | R152: -SPLIT- | T152: -473.3 | V152: 190575.53
H153: Check | J153: 2023-04-13 | L153: AW | N153: WK&T | R153: 675 · Miscellaneous Expense | T153: -51.52 | V153: 190524.01
H154: Check | J154: 2023-04-18 | L154: aw | N154: WK&T | R154: 675 · Miscellaneous Expense | T154: -20.76 | V154: 190503.25
H155: Deposit | J155: 2023-04-19 | P155: Deposit | R155: -SPLIT- | T155: 185428.03 | V155: 375931.28
H156: Check | J156: 2023-04-20 | L156: AW | N156: KENTUCKY REVENUE CABINET | R156: 241 · Tax Collections Payable | T156: -1290.25 | V156: 374641.03
H157: Check | J157: 2023-04-20 | L157: AW | N157: KENTUCKY STATE TREASURER | R157: 241 · Tax Collections Payable | T157: -4043.52 | V157: 370597.51
H158: General Journal | J158: 2023-04-20 | L158: 1162 | R158: -SPLIT- | T158: -9340 | V158: 361257.51
H159: General Journal | J159: 2023-04-20 | L159: 1162 | R159: 131.2 · FNB-O&M | T159: -1845 | V159: 359412.51
H160: General Journal | J160: 2023-04-20 | L160: 1162 | R160: 131.2 · FNB-O&M | T160: -7245 | V160: 352167.51
H161: General Journal | J161: 2023-04-20 | L161: 1162 | R161: 131.2 · FNB-O&M | T161: -695 | V161: 351472.51
H162: General Journal | J162: 2023-04-20 | L162: 1162 | R162: 131.2 · FNB-O&M | T162: -3035 | V162: 348437.51
H163: General Journal | J163: 2023-04-20 | L163: 1162 | R163: 131.2 · FNB-O&M | T163: -2110 | V163: 346327.51
H164: Bill Pmt -Check | J164: 2023-04-20 | L164: 5926 | N164: MAYFIELD ELECTRIC & WATER SYSTEMS | R164: 20000 · Accounts Payable | T164: -102163.85 | V164: 244163.66
H165: Check | J165: 2023-04-28 | L165: AW | N165: JACKSON PURCHASE ENERGY CORP | R165: 615 · Purchased Power | T165: -29.33 | V165: 244134.33
H166: Check | J166: 2023-04-28 | L166: AW | N166: JACKSON PURCHASE ENERGY CORP | R166: 615 · Purchased Power | T166: -25.57 | V166: 244108.76
H167: Check | J167: 2023-04-28 | L167: aw | N167: WEST KY RURAL ELECTRIC COOP | R167: -SPLIT- | T167: -4674.91 | V167: 239433.85
H168: Check | J168: 2023-04-28 | L168: aw | N168: WEST KY RURAL ELECTRIC COOP | R168: -SPLIT- | T168: -4805.36 | V168: 234628.49
H169: Deposit | J169: 2023-04-30 | P169: Interest | R169: 419 · Interest & Dividend Income | T169: 259.17 | V169: 234887.66
H170: Paycheck | J170: 2023-05-15 | L170: 5927 | R170: -SPLIT- | T170: -259.81 | V170: 234627.85
H171: Paycheck | J171: 2023-05-15 | L171: 5928 | R171: -SPLIT- | T171: -259.81 | V171: 234368.04
H172: Paycheck | J172: 2023-05-15 | L172: 5929 | R172: -SPLIT- | T172: -206.77 | V172: 234161.27
H173: Paycheck | J173: 2023-05-15 | L173: 5930 | R173: -SPLIT- | T173: -199.81 | V173: 233961.46
H174: Paycheck | J174: 2023-05-15 | L174: 5931 | R174: -SPLIT- | T174: -259.81 | V174: 233701.65
H175: Paycheck | J175: 2023-05-15 | L175: 5932 | R175: -SPLIT- | T175: -209.81 | V175: 233491.84
H176: Paycheck | J176: 2023-05-15 | L176: 5933 | R176: -SPLIT- | T176: -259.81 | V176: 233232.03
H177: Check | J177: 2023-05-15 | L177: AW | N177: ATMOS ENERGY | R177: 675 · Miscellaneous Expense | T177: -147.64 | V177: 233084.39
H178: Bill Pmt -Check | J178: 2023-05-15 | L178: 5934 | N178: CAYDEN GOODMAN | R178: 20000 · Accounts Payable | T178: -500 | V178: 232584.39
H179: Bill Pmt -Check | J179: 2023-05-15 | L179: 5935 | N179: GRAVES COUNTY WATER DISTRICT | R179: 20000 · Accounts Payable | T179: -126.21 | V179: 232458.18
H180: Bill Pmt -Check | J180: 2023-05-15 | L180: 5936 | N180: HAWKINS INC | R180: 20000 · Accounts Payable | T180: -9442.05 | V180: 223016.13
H181: Bill Pmt -Check | J181: 2023-05-15 | L181: 5937 | N181: JAYDEN HESTER | R181: 20000 · Accounts Payable | T181: -500 | V181: 222516.13
H182: Bill Pmt -Check | J182: 2023-05-15 | L182: 5938 | N182: KENTUCKY INFRASTRUCTURE AUTHORITY | R182: 20000 · Accounts Payable | T182: -24222.41 | V182: 198293.72
H183: Bill Pmt -Check | J183: 2023-05-15 | L183: 5939 | N183: KENTUCKY811 | R183: 20000 · Accounts Payable | T183: -498 | V183: 197795.72
H184: Bill Pmt -Check | J184: 2023-05-15 | L184: 5940 | N184: MAYFIELD ELECTRIC & WATER SYSTEMS | R184: 20000 · Accounts Payable | T184: -23991.03 | V184: 173804.69
H185: Bill Pmt -Check | J185: 2023-05-15 | L185: 5941 | N185: PACE ANALYTICAL SERVICES, LLC | R185: 20000 · Accounts Payable | T185: -2519.9 | V185: 171284.79
H186: Bill Pmt -Check | J186: 2023-05-15 | L186: 5942 | N186: REDMON, JORDAN | R186: 20000 · Accounts Payable | T186: -1880 | V186: 169404.79
H187: Bill Pmt -Check | J187: 2023-05-15 | L187: 5943 | N187: RICK'S ELECTRIC | R187: 20000 · Accounts Payable | T187: -67.91 | V187: 169336.88
H188: Bill Pmt -Check | J188: 2023-05-15 | L188: 5944 | N188: STOLL KEENON OGDEN PLLC | R188: 20000 · Accounts Payable | T188: -2175 | V188: 167161.88
H189: Bill Pmt -Check | J189: 2023-05-15 | L189: 5945 | N189: VERIZON WIRELESS | R189: 20000 · Accounts Payable | T189: -155.94 | V189: 167005.94
H190: Bill Pmt -Check | J190: 2023-05-15 | L190: 5946 | N190: WATER MANAGEMENT SERVICES | R190: 20000 · Accounts Payable | T190: -13200 | V190: 153805.94
H191: Bill Pmt -Check | J191: 2023-05-15 | L191: 5947 | N191: KENTUCKY INFRASTRUCTURE AUTHORITY | R191: 20000 · Accounts Payable | T191: -26063.87 | V191: 127742.07
H192: Bill Pmt -Check | J192: 2023-05-15 | L192: 5948 | N192: KENTUCKY INFRASTRUCTURE AUTHORITY | R192: 20000 · Accounts Payable | T192: -10511.58 | V192: 117230.49
H193: Check | J193: 2023-05-16 | L193: aw | N193: AT&T | R193: 675 · Miscellaneous Expense | T193: -20.76 | V193: 117209.73
H194: Liability Check | J194: 2023-05-17 | L194: aw | N194: United States Treasury | P194: 26-2993243 | R194: -SPLIT- | T194: -473.3 | V194: 116736.43
H195: General Journal | J195: 2023-05-17 | L195: 1164 | P195: BAD DEBT CHARGEOFFS (2020-2023 YTD) | R195: 131.6 · FNB-WATER LOSS REDUCTION | T195: 1690 | V195: 118426.43
H196: Check | J196: 2023-05-19 | L196: AW | N196: KENTUCKY STATE TREASURER | R196: 241 · Tax Collections Payable | T196: -4265.74 | V196: 114160.69
H197: Check | J197: 2023-05-19 | L197: AW | N197: KENTUCKY REVENUE CABINET | R197: 241 · Tax Collections Payable | T197: -1255.21 | V197: 112905.48
H198: Deposit | J198: 2023-05-19 | P198: Deposit | R198: -SPLIT- | T198: 189039.25 | V198: 301944.73
H199: General Journal | J199: 2023-05-23 | L199: 1171 | R199: -SPLIT- | T199: -7270 | V199: 294674.73
H200: General Journal | J200: 2023-05-23 | L200: 1171 | R200: 131.2 · FNB-O&M | T200: -1850 | V200: 292824.73
... 4300 more rows
